Workbook

Sheet Main Menu
B1: State Benefit Estimator - 2021 | C1: Unemployment Insurance Benefit Calculator for 2021
C2: This Benefit Calculator will estimate the state weekly benefit amount for any assumed eligible
C3: Unemployment Insurance claimant. It is assumed the claimant has met both the monetary and
C4: non-monetary state eligibility requirements. The user needs to input only the specific state,
C5: wages received in the Base period, wages earned in the highest quarter, and the number of dependents.
B7: Inputs:
C8: 1) State:
C10: 2) Amount of Wages earned in Base Period1: | M10: 60000
C12: 3) Amount of Wages Earned in Highest Quarter of Base Period: | M12: 20000
C14: 5) Number of Dependents2: | M14: 1
B17: Output:
C19: 1) Estimated Weekly Benefit Amount: | M19: =+Calculations!AN10 -> 484
C21: 2) Estimated Weekly Benefit Amount With Dependents3: | M21: =+Calculations!AN11 -> 510
C23: 3) Weekly Benefit Amount w/ Federal Additional Amount (FPUC)4: | M23: =+Calculations!AN12 -> 810
C25: 3b) Ending Date of Federal Add-On amount (FPUC): | M25: =+Calculations!AN16 -> 2021-09-06
C27: 4) Maximum Potential Duration,without State or Federal Extensions, (weeks): | M27: =+Calculations!AN13 -> 26
B29: Notes:
B30: 1. The base-period is the look-back period during which wages earned are examined to determine an individual’s monetary
B31: entitlement to benefits. Almost all states use the first four of the last five completed calendar quarters preceding the filing
B32: of the claim as their base-period, (https://oui.doleta.gov/unemploy/pdf/uilawcompar/2020/monetary.pdf).
B34: 2. The definition of dependent, for UI purposes, varies from state to state,
B35: (https://oui.doleta.gov/unemploy/pdf/uilawcompar/2020/monetary.pdf).
B37: 3. If the Weekly Benefit Amount is the same as without dependents then the state does not pay dependent benefits.
B39: 4. Federal Pandemic Unemployment Compensation (FPUC) added $300 to each claimant's Weekly Benefit Amount.

Sheet Calculations
AV1: States with WBA Tables
B2: Weekly Benefit Amount Calculator | AW2: Alaska WBA Table | BL2: New Hampshire Benefit Table | BU2: Pennsylvania Benefit Table
BU3: Salary | BW3: WBA | BX3: % | BZ3: Salary | CB3: WBA | CC3: % | CE3: Salary | CG3: WBA | CH3: %
D4: Input Data | T4: User Inputs | Y4: OUTPUTS | AH4: Calculations For Output of Benefit Estimator Screen | AV4: =+AW4/52 -> 48.07692308 | AW4: 2500 | AX4: 2750 | AY4: 56 | AZ4: =+AY4/AW4 -> 0.0224 | BA4: =+AY4/AV4 -> 1.1648 | BB4: =IF(AV4<63,100%,IF(AV4<91,85%,IF(AV4<149,70%,IF(AV4<231,57%,IF(AV4<318,54%,IF(AV4<346,53%,IF(AV4<380,52%,IF(AV4<486,50%,IF(AV4<591,48%,47.5%))))))))) -> 1 | BD4: =+BE4/52 -> 322.1153846 | BE4: 16750 | BF4: 17000 | BG4: 170 | BH4: =+BG4/BE4 -> 0.01014925373 | BI4: =+BG4/BD4 -> 0.527761194 | BJ4: =IF(BD4<63,100%,IF(BD4<91,85%,IF(BD4<149,70%,IF(BD4<231,57%,IF(BD4<318,54%,IF(BD4<346,53%,IF(BD4<380,52%,IF(BD4<486,50%,IF(BD4<591,48%,47.5%))))))))) -> 0.53 | BL4: 2800 | BM4: 32 | BN4: 42 | BO4: 38 | BP4: 832 | BQ4: =+BM4/(BL4/52) -> 0.5942857143 | BR4: =IF(BL4<9000,59%,IF(BL4<18500,57%,IF(BL4<27500,54%,IF(BL4<39500,53%,52%)))) -> 0.59 | BU4: 1688 | BV4: 1712 | BW4: 68 | BX4: =+BW4/(BU4/13) -> 0.5236966825 | BZ4: 6263 | CA4: 6287 | CB4: 247 | CC4: =+CB4/(BZ4/13) -> 0.5126935973 | CE4: 13738 | CF4: 13762 | CG4: 540 | CH4: =+CG4/(CE4/13) -> 0.5109914107
AI5: ABB | AJ5: State | AK5: State Num. | AL5: Year | AO5: Year | AV5: =+AW5/52 -> 52.88461538 | AW5: 2750 | AX5: 3000 | AY5: 58 | AZ5: =+AY5/AW5 -> 0.02109090909 | BA5: =+AY5/AV5 -> 1.096727273 | BB5: =IF(AV5<63,100%,IF(AV5<91,85%,IF(AV5<149,70%,IF(AV5<231,57%,IF(AV5<318,54%,IF(AV5<346,53%,IF(AV5<380,52%,IF(AV5<486,50%,IF(AV5<591,48%,47.5%))))))))) -> 1 | BD5: =+BE5/52 -> 326.9230769 | BE5: 17000 | BF5: 17250 | BG5: 172 | BH5: =+BG5/BE5 -> 0.01011764706 | BI5: =+BG5/BD5 -> 0.5261176471 | BJ5: 0.53 | BL5: 3100 | BM5: 35 | BN5: 45 | BO5: 42 | BP5: 910 | BQ5: =+BM5/(BL5/52) -> 0.5870967742 | BR5: =IF(BL5<9000,59%,IF(BL5<18500,57%,IF(BL5<27500,54%,IF(BL5<39500,53%,52%)))) -> 0.59 | BU5: 1713 | BV5: 1737 | BW5: 69 | BX5: =+BW5/(BU5/13) -> 0.523642732 | BZ5: 6288 | CA5: 6312 | CB5: 248 | CC5: 0.5127226463 | CE5: 13763 | CF5: 13787 | CG5: 541 | CH5: 0.5110077745
F6: Converted | G6: Pot. Max Dur. | H6: Factor used | I6: 2021 | T6: Estimated | AH6: 1 | AI6: AK | AJ6: Alaska | AK6: 1 | AL6: 2010 | AO6: 12 | AV6: 57.69230769 | AW6: 3000 | AX6: 3250 | AY6: 60 | AZ6: 0.02 | BA6: 1.04 | BB6: 1 | BD6: 331.7307692 | BE6: 17250 | BF6: 17500 | BG6: 174 | BH6: 0.01008695652 | BI6: 0.5245217391 | BJ6: 0.53 | BL6: 3400 | BM6: 39 | BN6: 51 | BO6: 47 | BP6: 1014 | BQ6: 0.5964705882 | BR6: 0.59 | BU6: 1738 | BV6: 1762 | BW6: 70 | BX6: 0.5235903337 | BZ6: 6313 | CA6: 6337 | CB6: 249 | CC6: 0.5127514652 | CE6: 13788 | CF6: 13812 | CG6: 542 | CH6: 0.5110240789
C7: Benefit Formula | D7: Ben Calc. | F7: WBA as% of AWW | G7: used in Formula | H7: Mult. of Wages | J7: Dependents | K7: Allowance | L7: Max number | M7: Max WBA | Q7: Calc Max Ben | R7: 2021 | T7: Base Period | Y7: Estimated | Z7: Estimated | AA7: Calculated | AB7: Calculated | AC7: Max Potential | AD7: WBA w/Depends | AE7: WBA w/FPUC | AF7: End Date of | AH7: 2 | AI7: AL | AJ7: ALABAMA | AK7: 2 | AL7: 2011 | AM7: STATE: | AN7: 15 | AV7: 62.5 | AW7: 3250 | AX7: 3500 | AY7: 62 | AZ7: 0.01907692308 | BA7: 0.992 | BB7: 1 | BD7: 336.5384615 | BE7: 17500 | BF7: 17750 | BG7: 176 | BH7: 0.01005714286 | BI7: 0.5229714286 | BJ7: 0.53 | BL7: 3900 | BM7: 45 | BN7: 58 | BO7: 54 | BP7: 1170 | BQ7: 0.6 | BR7: 0.59 | BU7: 1763 | BV7: 1787 | BW7: 71 | BX7: 0.5235394214 | BZ7: 6338 | CA7: 6362 | CB7: 250 | CC7: 0.5127800568 | CE7: 13813 | CF7: 13837 | CG7: 543 | CH7: 0.5110403243
A8: ABBREV | B8: STATE | D8: Method | E8: WBA Formula | F8: WBA/AWW | G8: WBA FACTOR | H8: Factor of Wages | I8: Min wo/Dep | J8: Min. WBA w/Dep | K8: Per Dep. | L8: of Deps. | M8: Max wo/Dep | N8: Max Ben w/Dep | O8: Min Duration | P8: Max Duration | Q8: Max Tot Ben | R8: Fed Add Amt (FPUC) | T8: Wages | U8: Qtrly Wage | V8: Qtrly Wage -2 | W8: Dependents | Y8: AWW | Z8: % Replac.Rate | AA8: WBA | AB8: Max Entitlement | AC8: Duration | AF8: FPUC | AH8: 3 | AI8: AR | AJ8: ARKANSAS | AK8: 3 | AL8: 2012 | AM8: YR: | AN8: =INDEX($AL$6:$AL$21,MATCH($AO$6,$AK$6:$AK$21,0)) -> 2021 | AV8: 67.30769231 | AW8: 3500 | AX8: 3750 | AY8: 64 | AZ8: 0.01828571429 | BA8: 0.9508571429 | BB8: 0.85 | BD8: 341.3461538 | BE8: 17750 | BF8: 18000 | BG8: 178 | BH8: 0.01002816901 | BI8: 0.5214647887 | BJ8: 0.53 | BL8: 4200 | BM8: 48 | BN8: 62 | BO8: 58 | BP8: 1248 | BQ8: 0.5942857143 | BR8: 0.59 | BU8: 1788 | BV8: 1812 | BW8: 72 | BX8: 0.5234899329 | BZ8: 6363 | CA8: 6387 | CB8: 251 | CC8: 0.5128084237 | CE8: 13838 | CF8: 13862 | CG8: 544 | CH8: 0.5110565111
A9: AK | B9: Alaska | C9: Table | D9: AW | E9: 0.009 | F9: 0.47 | H9: 26 | I9: 56 | J9: 128 | K9: 24 | L9: 3 | M9: 370 | N9: 442 | O9: 16 | P9: 26 | Q9: =+M9*P9 -> 9620 | R9: 300 | T9: =+'Main Menu'!M$10 -> 60000 | U9: =+'Main Menu'!M$12 -> 20000 | W9: =IF('Main Menu'!$M$14<L9,'Main Menu'!$M$14,L9) -> 1 | Y9: =+((U9+(T9*0.25))/26) -> 1346.153846 | Z9: =IF(Y9<63,100%,IF(Y9<91,85%,IF(Y9<149,70%,IF(Y9<231,57%,IF(Y9<318,54%,IF(Y9<346,53%,IF(Y9<380,52%,IF(Y9<486,50%,IF(Y9<591,48%,47.5%))))))))) -> 0.475 | AA9: =IF((Y9*Z9)>$M9,$M9,IF((Y9*Z9)<$I9,$I9,$Y9*$Z9)) -> 370 | AB9: =IF((AA9*P9)>Q9,Q9,(AA9*P9)) -> 9620 | AC9: =IF((AB9/AA9)>P9,P9,IF((AB9/AA9)<O9,O9,(AB9/AA9))) -> 26 | AD9: =IF(W9>0,AA9+(W9*K9),AA9) -> 394 | AE9: =+AD9+R9 -> 694 | AF9: 2021-06-12 | AH9: 4 | AI9: AZ | AJ9: ARIZONA | AK9: 4 | AL9: 2013 | AM9: CALCULATION | AV9: 72.11538462 | AW9: 3750 | AX9: 4000 | AY9: 66 | AZ9: 0.0176 | BA9: 0.9152 | BB9: 0.85 | BD9: 346.1538462 | BE9: 18000 | BF9: 18250 | BG9: 180 | BH9: 0.01 | BI9: 0.52 | BJ9: 0.52 | BL9: 4500 | BM9: 52 | BN9: 68 | BO9: 62 | BP9: 1352 | BQ9: 0.6008888889 | BR9: 0.59 | BU9: 1813 | BV9: 1837 | BW9: 73 | BX9: 0.5234418092 | BZ9: 6388 | CA9: 6412 | CB9: 252 | CC9: 0.5128365686 | CE9: 13863 | CF9: 13887 | CG9: 545 | CH9: 0.5110726394
A10: AL | B10: Alabama | C10: 1/26 avg 2HQ | D10: MQ | E10: 1/26 | F10: 0.5 | G10: 14 | H10: 0.25 | I10: 45 | L10: 0 | M10: 275 | O10: 15 | P10: 14 | Q10: 3850 | R10: 300 | T10: =+'Main Menu'!M$10 -> 60000 | U10: =+'Main Menu'!M$12 -> 20000 | W10: =IF('Main Menu'!$M$14<L10,'Main Menu'!$M$14,L10) -> 0 | Y10: =+((U10+(T10*0.25))/26) -> 1346.153846 | Z10: =IF(C10="Table",F10,F10) -> 0.5 | AA10: 275 | AB10: 3850 | AC10: 15 | AD10: 275 | AE10: 575 | AF10: 2021-06-19 | AH10: 5 | AI10: CA | AJ10: CALIFORNIA | AK10: 5 | AL10: 2014 | AM10: Est. WBA | AN10: =SUMIFS($AA$9:$AA$61,$AH$6:$AH$58,"="&$AN$7) -> 484 | AV10: 76.92307692 | AW10: 4000 | AX10: 4250 | AY10: 68 | AZ10: 0.017 | BA10: 0.884 | BB10: 0.85 | BD10: 350.9615385 | BE10: 18250 | BF10: 18500 | BG10: 182 | BH10: 0.00997260274 | BI10: 0.5185753425 | BJ10: 0.52 | BL10: 4800 | BM10: 55 | BN10: 71 | BO10: 66 | BP10: 1430 | BQ10: 0.5958333333 | BR10: 0.59 | BU10: 1838 | BV10: 1862 | BW10: 74 | BX10: 0.5233949946 | BZ10: 6413 | CA10: 6437 | CB10: 253 | CC10: 0.512864494 | CE10: 13888 | CF10: 13912 | CG10: 546 | CH10: 0.5110887097
A11: AR | B11: Arkansas | C11: 1/26 avg 2HQ | D11: MQ | E11: 1/26 | F11: 0.5 | G11: 16 | H11: 0.333 | I11: 81 | L11: 0 | M11: 451 | O11: 9 | P11: 20 | Q11: 9020 | R11: 300 | T11: =+'Main Menu'!M$10 -> 60000 | U11: =+'Main Menu'!M$12 -> 20000 | W11: =IF('Main Menu'!$M$14<L11,'Main Menu'!$M$14,L11) -> 0 | Y11: =+((U11+(T11*0.25))/26) -> 1346.153846 | Z11: 0.5 | AA11: 451 | AB11: 9020 | AC11: 20 | AD11: 451 | AE11: 751 | AF11: 2021-06-26 | AH11: 6 | AI11: CO | AJ11: COLORADO | AK11: 6 | AL11: 2015 | AM11: Est. WBA W/Dep | AN11: =SUMIFS($AD$9:$AD$61,$AH$6:$AH$58,"="&$AN$7) -> 510 | AV11: 81.73076923 | AW11: 4250 | AX11: 4500 | AY11: 70 | AZ11: 0.01647058824 | BA11: 0.8564705882 | BB11: 0.85 | BD11: 355.7692308 | BE11: 18500 | BF11: 18750 | BG11: 184 | BH11: 0.009945945946 | BI11: 0.5171891892 | BJ11: 0.52 | BL11: 5100 | BM11: 59 | BN11: 77 | BO11: 71 | BP11: 1534 | BQ11: 0.6015686275 | BR11: 0.59 | BU11: 1863 | BV11: 1887 | BW11: 75 | BX11: 0.5233494364 | BZ11: 6438 | CA11: 6462 | CB11: 254 | CC11: 0.5128922025 | CE11: 13913 | CF11: 13937 | CG11: 547 | CH11: 0.5111047222
A12: AZ | B12: Arizona | C12: 1/25 HQ | D12: HQ | E12: 1/25 | F12: 0.52 | G12: 26 | H12: 0.333 | I12: 187 | L12: 0 | M12: 240 | O12: 8 | P12: 26 | Q12: 6240 | R12: 300 | T12: =+'Main Menu'!M$10 -> 60000 | U12: =+'Main Menu'!M$12 -> 20000 | W12: =IF('Main Menu'!$M$14<L12,'Main Menu'!$M$14,L12) -> 0 | Y12: =+U12/13 -> 1538.461538 | Z12: 0.52 | AA12: 240 | AB12: 6240 | AC12: 26 | AD12: 240 | AE12: 540 | AF12: 2021-07-10 | AH12: 7 | AI12: CT | AJ12: CONNECTICUT | AK12: 7 | AL12: 2016 | AM12: WBA W/DEP W/FPUC | AN12: =SUMIFS($AE$9:$AE$61,$AH$6:$AH$58,"="&$AN$7) -> 810 | AV12: 86.53846154 | AW12: 4500 | AX12: 4750 | AY12: 72 | AZ12: 0.016 | BA12: 0.832 | BB12: 0.85 | BD12: 360.5769231 | BE12: 18750 | BF12: 19000 | BG12: 186 | BH12: 0.00992 | BI12: 0.51584 | BJ12: 0.52 | BL12: 5600 | BM12: 64 | BN12: 83 | BO12: 77 | BP12: 1664 | BQ12: 0.5942857143 | BR12: 0.59 | BU12: 1888 | BV12: 1912 | BW12: 76 | BX12: 0.5233050847 | BZ12: 6463 | CA12: 6487 | CB12: 255 | CC12: 0.5129196967 | CE12: 13938 | CF12: 13962 | CG12: 548 | CH12: 0.5111206773
A13: CA | B13: California | C13: 1/26 HQ | D13: HQ | E13: 1/26 | F13: 0.5 | G13: 26 | H13: 0.5 | I13: 40 | L13: 0 | M13: 450 | O13: 14 | P13: 26 | Q13: 11700 | R13: 300 | T13: =+'Main Menu'!M$10 -> 60000 | U13: =+'Main Menu'!M$12 -> 20000 | W13: =IF('Main Menu'!$M$14<L13,'Main Menu'!$M$14,L13) -> 0 | Y13: 1538.461538 | Z13: 0.5 | AA13: 450 | AB13: 11700 | AC13: 26 | AD13: 450 | AE13: 750 | AF13: 2021-09-06 | AH13: 8 | AI13: DC | AJ13: DISTRICT OF COLUMBIA | AK13: 8 | AL13: 2017 | AM13: Maximum Potential Duration | AN13: =SUMIFS($AC$9:$AC$61,$AH$6:$AH$58,"="&$AN$7) -> 26 | AV13: 91.34615385 | AW13: 4750 | AX13: 5000 | AY13: 74 | AZ13: 0.01557894737 | BA13: 0.8101052632 | BB13: 0.7 | BD13: 365.3846154 | BE13: 19000 | BF13: 19250 | BG13: 188 | BH13: 0.009894736842 | BI13: 0.5145263158 | BJ13: 0.52 | BL13: 6100 | BM13: 69 | BN13: 90 | BO13: 83 | BP13: 1794 | BQ13: 0.5881967213 | BR13: 0.59 | BU13: 1913 | BV13: 1937 | BW13: 77 | BX13: 0.5232618923 | BZ13: 6488 | CA13: 6512 | CB13: 256 | CC13: 0.512946979 | CE13: 13963 | CF13: 13987 | CG13: 549 | CH13: 0.5111365752
A14: CO | B14: Colorado | C14: .6*1/26 2HQ | D14: MQ | E14: 1/26 | F14: 0.6 | G14: 26 | H14: 0.333 | I14: 25 | L14: 0 | M14: 649 | O14: 13 | P14: 26 | Q14: 16874 | R14: 300 | T14: =+'Main Menu'!M$10 -> 60000 | U14: =+'Main Menu'!M$12 -> 20000 | W14: =IF('Main Menu'!$M$14<L14,'Main Menu'!$M$14,L14) -> 0 | Y14: =+((U14+(T14*0.25))/26) -> 1346.153846 | Z14: 0.6 | AA14: 649 | AB14: 16874 | AC14: 26 | AD14: 649 | AE14: 949 | AF14: 2021-09-06 | AH14: 9 | AI14: DE | AJ14: DELAWARE | AK14: 9 | AL14: 2018 | AM14: State Maximum Weekly Benefit | AN14: =SUMIFS($M$9:$M$61,$AH$6:$AH$58,"="&$AN$7) -> 484 | AV14: 96.15384615 | AW14: 5000 | AX14: 5250 | AY14: 76 | AZ14: 0.0152 | BA14: 0.7904 | BB14: 0.7 | BD14: 370.1923077 | BE14: 19250 | BF14: 19500 | BG14: 190 | BH14: 0.00987012987 | BI14: 0.5132467532 | BJ14: 0.52 | BL14: 6600 | BM14: 75 | BN14: 97 | BO14: 90 | BP14: 1950 | BQ14: 0.5909090909 | BR14: 0.59 | BU14: 1938 | BV14: 1962 | BW14: 78 | BX14: 0.5232198142 | BZ14: 6513 | CA14: 6537 | CB14: 257 | CC14: 0.5129740519 | CE14: 13988 | CF14: 14012 | CG14: 550 | CH14: 0.5111524164
A15: CT | B15: Connecticut | C15: 1/26 avg 2HQ | D15: MQ | E15: 1/26 | F15: 0.5 | G15: 26 | I15: 15 | J15: 30 | K15: 15 | L15: 5 | M15: 649 | N15: 724 | O15: 26 | P15: 26 | Q15: 16874 | R15: 300 | T15: =+'Main Menu'!M$10 -> 60000 | U15: =+'Main Menu'!M$12 -> 20000 | W15: =IF('Main Menu'!$M$14<L15,'Main Menu'!$M$14,L15) -> 1 | Y15: =+((U15+(T15*0.25))/26) -> 1346.153846 | Z15: 0.5 | AA15: 649 | AB15: 16874 | AC15: =+G15 -> 26 | AD15: 664 | AE15: 964 | AF15: 2021-09-06 | AH15: 10 | AI15: FL | AJ15: FLORIDA | AK15: 10 | AL15: 2019 | AM15: State Maximum Total Benefits | AN15: =SUMIFS($AB$9:$AB$61,$AH$6:$AH$58,"="&$AN$7) -> 12584 | AV15: 100.9615385 | AW15: 5250 | AX15: 5500 | AY15: 78 | AZ15: 0.01485714286 | BA15: 0.7725714286 | BB15: 0.7 | BD15: 375 | BE15: 19500 | BF15: 19750 | BG15: 192 | BH15: 0.009846153846 | BI15: 0.512 | BJ15: 0.52 | BL15: 7000 | BM15: 80 | BN15: 104 | BO15: 96 | BP15: 2080 | BQ15: 0.5942857143 | BR15: 0.59 | BU15: 1963 | BV15: 1987 | BW15: 79 | BX15: 0.5231788079 | BZ15: 6538 | CA15: 6562 | CB15: 258 | CC15: 0.5130009177 | CE15: 14013 | CF15: 14037 | CG15: 551 | CH15: 0.511168201
A16: DC | B16: District of Columbia | C16: 1/26 HQ | D16: HQ | E16: 1/26 | F16: 0.5 | G16: 26 | I16: 50 | L16: 0 | M16: 444 | O16: 26 | P16: 26 | Q16: 11544 | R16: 300 | T16: =+'Main Menu'!M$10 -> 60000 | U16: =+'Main Menu'!M$12 -> 20000 | W16: =IF('Main Menu'!$M$14<L16,'Main Menu'!$M$14,L16) -> 0 | Y16: 1538.461538 | Z16: 0.5 | AA16: 444 | AB16: 11544 | AC16: =+G16 -> 26 | AD16: 444 | AE16: 744 | AF16: 2021-09-06 | AH16: 11 | AI16: GA | AJ16: GEORGIA | AK16: 11 | AL16: 2020 | AM16: End Date for FPUC | AN16: =SUMIFS($AF$9:$AF$61,$AH$6:$AH$58,"="&$AN$7) -> 2021-09-06 | AV16: 105.7692308 | AW16: 5500 | AX16: 5750 | AY16: 80 | AZ16: 0.01454545455 | BA16: 0.7563636364 | BB16: 0.7 | BD16: 379.8076923 | BE16: 19750 | BF16: 20000 | BG16: 194 | BH16: 0.00982278481 | BI16: 0.5107848101 | BJ16: 0.52 | BL16: 7400 | BM16: 83 | BN16: 108 | BO16: 100 | BP16: 2158 | BQ16: 0.5832432432 | BR16: 0.59 | BU16: 1998 | BV16: 2012 | BW16: 80 | BX16: 0.5205205205 | BZ16: 6563 | CA16: 6587 | CB16: 259 | CC16: 0.5130275789 | CE16: 14038 | CF16: 14062 | CG16: 552 | CH16: 0.5111839293
A17: DE | B17: Delaware | C17: 1/46 2HQ | D17: MQ | E17: 1/46 | F17: 0.57 | H17: 0.5 | I17: 20 | L17: 0 | M17: 400 | O17: 24 | P17: 26 | Q17: 10400 | R17: 300 | T17: =+'Main Menu'!M$10 -> 60000 | U17: =+'Main Menu'!M$12 -> 20000 | W17: =IF('Main Menu'!$M$14<L17,'Main Menu'!$M$14,L17) -> 0 | Y17: =+((U17+(T17*0.25))/26) -> 1346.153846 | Z17: 0.57 | AA17: 400 | AB17: 10400 | AC17: =IF((AB17/AA17)>P17,P17,IF((AB17/AA17)<O17,O17,(AB17/AA17))) -> 26 | AD17: 400 | AE17: 700 | AF17: 2021-09-06 | AH17: 12 | AI17: HI | AJ17: HAWAII | AK17: 12 | AL17: 2021 | AV17: 110.5769231 | AW17: 5750 | AX17: 6000 | AY17: 82 | AZ17: 0.01426086957 | BA17: 0.7415652174 | BB17: 0.7 | BD17: 384.6153846 | BE17: 20000 | BF17: 20250 | BG17: 196 | BH17: 0.0098 | BI17: 0.5096 | BJ17: 0.5 | BL17: 7800 | BM17: 88 | BN17: 114 | BO17: 106 | BP17: 2288 | BQ17: 0.5866666667 | BR17: 0.59 | BU17: 2013 | BV17: 2037 | BW17: 81 | BX17: 0.523099851 | BZ17: 6588 | CA17: 6612 | CB17: 260 | CC17: 0.5130540376 | CE17: 14063 | CF17: 14087 | CG17: 553 | CH17: 0.5111996018
A18: FL | B18: Florida | C18: 1/26 HQ | D18: HQ | E18: 1/26 | F18: 0.5 | G18: =+P18 -> 12 | H18: 0.25 | I18: 32 | L18: 0 | M18: 275 | O18: 9 | P18: 12 | Q18: 3300 | R18: 300 | T18: =+'Main Menu'!M$10 -> 60000 | U18: =+'Main Menu'!M$12 -> 20000 | W18: =IF('Main Menu'!$M$14<L18,'Main Menu'!$M$14,L18) -> 0 | Y18: 1538.461538 | Z18: 0.5 | AA18: 275 | AB18: 3300 | AC18: =IF((AB18/AA18)>P18,P18,IF((AB18/AA18)<O18,O18,(AB18/AA18))) -> 12 | AD18: 275 | AE18: 575 | AF18: 2021-06-26 | AH18: 13 | AI18: IA | AJ18: IOWA | AK18: 13 | AL18: 2022 | AV18: 115.3846154 | AW18: 6000 | AX18: 6250 | AY18: 84 | AZ18: 0.014 | BA18: 0.728 | BB18: 0.7 | BD18: 389.4230769 | BE18: 20250 | BF18: 20500 | BG18: 198 | BH18: 0.009777777778 | BI18: 0.5084444444 | BJ18: 0.5 | BL18: 8200 | BM18: 92 | BN18: 120 | BO18: 110 | BP18: 2392 | BQ18: 0.5834146341 | BR18: 0.59 | BU18: 2038 | BV18: 2062 | BW18: 82 | BX18: 0.5230618253 | BZ18: 6613 | CA18: 6637 | CB18: 261 | CC18: 0.5130802964 | CE18: 14088 | CF18: 14112 | CG18: 554 | CH18: 0.5112152186
A19: GA | B19: Georgia | C19: 1/42 2HQ | D19: MQ | E19: 1/42 | F19: 0.62 | G19: =+P19 -> 14 | H19: 0.25 | I19: 55 | L19: 0 | M19: 365 | O19: 6 | P19: 14 | Q19: 5110 | R19: 300 | T19: =+'Main Menu'!M$10 -> 60000 | U19: =+'Main Menu'!M$12 -> 20000 | W19: =IF('Main Menu'!$M$14<L19,'Main Menu'!$M$14,L19) -> 0 | Y19: =+((U19+(T19*0.25))/26) -> 1346.153846 | Z19: 0.62 | AA19: 365 | AB19: 5110 | AC19: =IF((AB19/AA19)>P19,P19,IF((AB19/AA19)<O19,O19,(AB19/AA19))) -> 14 | AD19: 365 | AE19: 665 | AF19: 2021-06-26 | AH19: 14 | AI19: ID | AJ19: IDAHO | AK19: 14 | AL19: 2023 | AV19: 120.1923077 | AW19: 6250 | AX19: 6500 | AY19: 86 | AZ19: 0.01376 | BA19: 0.71552 | BB19: 0.7 | BD19: 394.2307692 | BE19: 20500 | BF19: 20750 | BG19: 200 | BH19: 0.009756097561 | BI19: 0.5073170732 | BJ19: 0.5 | BL19: 8600 | BM19: 96 | BN19: 125 | BO19: 115 | BP19: 2496 | BQ19: 0.5804651163 | BR19: 0.59 | BU19: 2063 | BV19: 2087 | BW19: 83 | BX19: 0.5230247213 | BZ19: 6638 | CA19: 6662 | CB19: 262 | CC19: 0.5131063573 | CE19: 14113 | CF19: 14137 | CG19: 555 | CH19: 0.5112307801
A20: HI | B20: Hawaii | C20: 1/21 HQ | D20: HQ | E20: 1/21 | F20: 0.62 | G20: 26 | I20: 5 | L20: 0 | M20: 648 | O20: 26 | P20: 26 | Q20: 16848 | R20: 300 | T20: =+'Main Menu'!M$10 -> 60000 | U20: =+'Main Menu'!M$12 -> 20000 | W20: =IF('Main Menu'!$M$14<L20,'Main Menu'!$M$14,L20) -> 0 | Y20: 1538.461538 | Z20: 0.62 | AA20: 648 | AB20: 16848 | AC20: =+G20 -> 26 | AD20: 648 | AE20: 948 | AF20: 2021-09-06 | AH20: 15 | AI20: IL | AJ20: ILLINOIS | AK20: 15 | AL20: 2024 | AV20: 125 | AW20: 6500 | AX20: 6750 | AY20: 88 | AZ20: 0.01353846154 | BA20: 0.704 | BB20: 0.7 | BD20: 399.0384615 | BE20: 20750 | BF20: 21000 | BG20: 202 | BH20: 0.009734939759 | BI20: 0.5062168675 | BJ20: 0.5 | BL20: 9000 | BM20: 101 | BN20: 131 | BO20: 121 | BP20: 2626 | BQ20: 0.5835555556 | BR20: 0.57 | BU20: 2088 | BV20: 2112 | BW20: 84 | BX20: 0.5229885057 | BZ20: 6663 | CA20: 6687 | CB20: 263 | CC20: 0.5131322227 | CE20: 14138 | CF20: 14162 | CG20: 556 | CH20: 0.5112462866
A21: IA | B21: Iowa | C21: 1/23 HQ for no dependents | D21: HQ | E21: 1/23 | F21: 0.57 | G21: 26 | H21: 0.333 | I21: 72 | J21: 87 | K21: 14 | L21: 7 | M21: 481 | N21: 591 | O21: 8 | P21: 26 | Q21: 12506 | R21: 300 | T21: =+'Main Menu'!M$10 -> 60000 | U21: =+'Main Menu'!M$12 -> 20000 | W21: =IF('Main Menu'!$M$14<L21,'Main Menu'!$M$14,L21) -> 1 | Y21: 1538.461538 | Z21: 0.57 | AA21: 481 | AB21: 12506 | AC21: =IF((AB21/AA21)>P21,P21,IF((AB21/AA21)<O21,O21,(AB21/AA21))) -> 26 | AD21: 495 | AE21: 795 | AF21: 2021-06-12 | AH21: 16 | AI21: IN | AJ21: INDIANA | AK21: 16 | AL21: 2025 | AV21: 129.8076923 | AW21: 6750 | AX21: 7000 | AY21: 90 | AZ21: 0.01333333333 | BA21: 0.6933333333 | BB21: 0.7 | BD21: 403.8461538 | BE21: 21000 | BF21: 21250 | BG21: 204 | BH21: 0.009714285714 | BI21: 0.5051428571 | BJ21: 0.5 | BL21: 9500 | BM21: 105 | BN21: 136 | BO21: 126 | BP21: 2730 | BQ21: 0.5747368421 | BR21: 0.57 | BU21: 2113 | BV21: 2137 | BW21: 85 | BX21: 0.5229531472 | BZ21: 6688 | CA21: 6712 | CB21: 264 | CC21: 0.5131578947 | CE21: 14163 | CF21: 14187 | CG21: 557 | CH21: 0.5112617383
A22: ID | B22: Idaho | C22: 1/26 HQ | D22: HQ | E22: 1/26 | F22: 0.5 | G22: =+P22 -> 20 | I22: 72 | L22: 0 | M22: 448 | O22: 10 | P22: 20 | Q22: 8960 | R22: 300 | T22: =+'Main Menu'!M$10 -> 60000 | U22: =+'Main Menu'!M$12 -> 20000 | W22: =IF('Main Menu'!$M$14<L22,'Main Menu'!$M$14,L22) -> 0 | Y22: 1538.461538 | Z22: 0.5 | AA22: 448 | AB22: 8960 | AC22: =IF((AB22/AA22)>P22,P22,IF((AB22/AA22)<O22,O22,(AB22/AA22))) -> 20 | AD22: 448 | AE22: 748 | AF22: 2021-06-19 | AH22: 17 | AI22: KS | AJ22: KANSAS | AV22: 134.6153846 | AW22: 7000 | AX22: 7250 | AY22: 92 | AZ22: 0.01314285714 | BA22: 0.6834285714 | BB22: 0.7 | BD22: 408.6538462 | BE22: 21250 | BF22: 21500 | BG22: 206 | BH22: 0.009694117647 | BI22: 0.5040941176 | BJ22: 0.5 | BL22: 10000 | BM22: 110 | BN22: 143 | BO22: 132 | BP22: 2860 | BQ22: 0.572 | BR22: 0.57 | BU22: 2138 | BV22: 2162 | BW22: 86 | BX22: 0.5229186155 | BZ22: 6713 | CA22: 6737 | CB22: 265 | CC22: 0.5131833755 | CE22: 14188 | CF22: 14212 | CG22: 558 | CH22: 0.5112771356
A23: IL | B23: Illinois | C23: .47*2HQW/26 | D23: MQ | E23: 0.47 | F23: 0.47 | G23: 26 | I23: 51 | K23: 26 | L23: 6 | M23: 484 | O23: 26 | P23: 26 | Q23: 12584 | R23: 300 | T23: =+'Main Menu'!M$10 -> 60000 | U23: =+'Main Menu'!M$12 -> 20000 | W23: =IF('Main Menu'!$M$14<L23,'Main Menu'!$M$14,L23) -> 1 | Y23: =+((U23+(T23*0.25))/26) -> 1346.153846 | Z23: 0.47 | AA23: 484 | AB23: 12584 | AC23: =+G23 -> 26 | AD23: 510 | AE23: 810 | AF23: 2021-09-06 | AH23: 18 | AI23: KY | AJ23: KENTUCKY | AV23: 139.4230769 | AW23: 7250 | AX23: 7500 | AY23: 94 | AZ23: 0.01296551724 | BA23: 0.6742068966 | BB23: 0.7 | BD23: 413.4615385 | BE23: 21500 | BF23: 21750 | BG23: 208 | BH23: 0.009674418605 | BI23: 0.5030697674 | BJ23: 0.5 | BL23: 10500 | BM23: 115 | BN23: 149 | BO23: 138 | BP23: 2990 | BQ23: 0.5695238095 | BR23: 0.57 | BU23: 2163 | BV23: 2187 | BW23: 87 | BX23: 0.5228848821 | BZ23: 6738 | CA23: 6762 | CB23: 266 | CC23: 0.5132086673 | CE23: 14213 | CF23: 14237 | CG23: 559 | CH23: 0.5112924787
A24: IN | B24: Indiana | C24: .47 * Avg weekly wage | D24: WW | E24: 0.47 | F24: 0.47 | G24: 26 | H24: 0.28 | I24: 37 | L24: 0 | M24: 390 | O24: 26 | P24: 26 | Q24: 10140 | R24: 300 | T24: =+'Main Menu'!M$10 -> 60000 | U24: =+'Main Menu'!M$12 -> 20000 | W24: =IF('Main Menu'!$M$14<L24,'Main Menu'!$M$14,L24) -> 0 | Y24: =+((U24+(T24*0.25))/26) -> 1346.153846 | Z24: 0.47 | AA24: 390 | AB24: 10140 | AC24: =IF((AB24/AA24)>P24,P24,IF((AB24/AA24)<O24,O24,(AB24/AA24))) -> 26 | AD24: 390 | AE24: 690 | AF24: 2021-06-19 | AH24: 19 | AI24: LA | AJ24: LOUISIANA | AV24: 144.2307692 | AW24: 7500 | AX24: 7750 | AY24: 96 | AZ24: 0.0128 | BA24: 0.6656 | BB24: 0.7 | BD24: 418.2692308 | BE24: 21750 | BF24: 22000 | BG24: 210 | BH24: 0.009655172414 | BI24: 0.5020689655 | BJ24: 0.5 | BL24: 11000 | BM24: 120 | BN24: 156 | BO24: 144 | BP24: 3120 | BQ24: 0.5672727273 | BR24: 0.57 | BU24: 2188 | BV24: 2212 | BW24: 88 | BX24: 0.5228519196 | BZ24: 6763 | CA24: 6787 | CB24: 267 | CC24: 0.513233772 | CE24: 14238 | CF24: 14262 | CG24: 560 | CH24: 0.5113077679
A25: KS | B25: Kansas | C25: .0425*HQW | D25: HQ | E25: 0.0425 | F25: 0.55 | G25: =+P25 -> 16 | H25: 0.333 | I25: 122 | L25: 0 | M25: 488 | O25: 10 | P25: 16 | Q25: 7808 | R25: 300 | T25: =+'Main Menu'!M$10 -> 60000 | U25: =+'Main Menu'!M$12 -> 20000 | W25: =IF('Main Menu'!$M$14<L25,'Main Menu'!$M$14,L25) -> 0 | Y25: 1538.461538 | Z25: 0.55 | AA25: 488 | AB25: 7808 | AC25: =IF((AB25/AA25)>P25,P25,IF((AB25/AA25)<O25,O25,(AB25/AA25))) -> 16 | AD25: 488 | AE25: 788 | AF25: 2021-09-06 | AH25: 20 | AI25: MA | AJ25: MASSACHUSETTS | AV25: 149.0384615 | AW25: 7750 | AX25: 8000 | AY25: 98 | AZ25: 0.01264516129 | BA25: 0.6575483871 | BB25: 0.57 | BD25: 423.0769231 | BE25: 22000 | BF25: 22250 | BG25: 212 | BH25: 0.009636363636 | BI25: 0.5010909091 | BJ25: 0.5 | BL25: 11500 | BM25: 126 | BN25: 164 | BO25: 151 | BP25: 3276 | BQ25: 0.5697391304 | BR25: 0.57 | BU25: 2213 | BV25: 2237 | BW25: 89 | BX25: 0.5228197018 | BZ25: 6788 | CA25: 6812 | CB25: 268 | CC25: 0.5132586918 | CE25: 14263 | CF25: 14287 | CG25: 561 | CH25: 0.5113230036
A26: KY | B26: Kentucky | C26: .011923*BPW | D26: AW | E26: 0.0119 | F26: 0.62 | G26: 26 | H26: 0.33 | I26: 39 | L26: 0 | M26: 552 | O26: 15 | P26: 26 | Q26: 14352 | R26: 300 | T26: =+'Main Menu'!M$10 -> 60000 | U26: =+'Main Menu'!M$12 -> 20000 | W26: =IF('Main Menu'!$M$14<L26,'Main Menu'!$M$14,L26) -> 0 | Y26: =+T26/52 -> 1153.846154 | Z26: 0.62 | AA26: 552 | AB26: 14352 | AC26: =IF((AB26/AA26)>P26,P26,IF((AB26/AA26)<O26,O26,(AB26/AA26))) -> 26 | AD26: 552 | AE26: 852 | AF26: 2021-09-06 | AH26: 21 | AI26: MD | AJ26: MARYLAND | AV26: 153.8461538 | AW26: 8000 | AX26: 8250 | AY26: 100 | AZ26: 0.0125 | BA26: 0.65 | BB26: 0.57 | BD26: 427.8846154 | BE26: 22250 | BF26: 22500 | BG26: 214 | BH26: 0.009617977528 | BI26: 0.5001348315 | BJ26: 0.5 | BL26: 12500 | BM26: 137 | BN26: 178 | BO26: 164 | BP26: 3562 | BQ26: 0.56992 | BR26: 0.57 | BU26: 2238 | BV26: 2262 | BW26: 90 | BX26: 0.5227882038 | BZ26: 6813 | CA26: 6837 | CB26: 269 | CC26: 0.5132834287 | CE26: 14288 | CF26: 14312 | CG26: 562 | CH26: 0.5113381859
A27: LA | B27: Louisiana | C27: 1/25 avg4QW*1.05*1.15 | D27: MQ | E27: 1/25 | F27: 0.63 | G27: 26 | I27: 10 | L27: 0 | M27: 247 | O27: 26 | P27: 26 | Q27: 6422 | R27: 300 | T27: =+'Main Menu'!M$10 -> 60000 | U27: =+'Main Menu'!M$12 -> 20000 | W27: =IF('Main Menu'!$M$14<L27,'Main Menu'!$M$14,L27) -> 0 | Y27: =+T27/52 -> 1153.846154 | Z27: 0.63 | AA27: 247 | AB27: 6422 | AC27: =+G27 -> 26 | AD27: 247 | AE27: 547 | AF27: 2021-09-06 | AH27: 22 | AI27: ME | AJ27: MAINE | AV27: 158.6538462 | AW27: 8250 | AX27: 8500 | AY27: 102 | AZ27: 0.01236363636 | BA27: 0.6429090909 | BB27: 0.57 | BD27: 432.6923077 | BE27: 22500 | BF27: 22750 | BG27: 216 | BH27: 0.0096 | BI27: 0.4992 | BJ27: 0.5 | BL27: 13500 | BM27: 148 | BN27: 192 | BO27: 178 | BP27: 3848 | BQ27: 0.5700740741 | BR27: 0.57 | BU27: 2263 | BV27: 2287 | BW27: 91 | BX27: 0.5227574017 | BZ27: 6838 | CA27: 6862 | CB27: 270 | CC27: 0.5133079848 | CE27: 14313 | CF27: 14337 | CG27: 563 | CH27: 0.5113533152
A28: MA | B28: Massachusetts | C28: .5*2HQW/26 up to 57.5% of State's AWW | D28: MQ | E28: 1/26 | F28: 0.5 | G28: 26 | H28: 0.36 | I28: 98 | J28: 147 | K28: 25 | L28: 7 | M28: 823 | N28: 1234 | O28: 10 | P28: 30 | Q28: 24690 | R28: 300 | T28: =+'Main Menu'!M$10 -> 60000 | U28: =+'Main Menu'!M$12 -> 20000 | W28: =IF('Main Menu'!$M$14<L28,'Main Menu'!$M$14,L28) -> 1 | Y28: =+((U28+(T28*0.25))/26) -> 1346.153846 | Z28: 0.5 | AA28: 673.0769231 | AB28: 20192.30769 | AC28: =IF((AB28/AA28)>P28,P28,IF((AB28/AA28)<O28,O28,(AB28/AA28))) -> 30 | AD28: 698.0769231 | AE28: 998.0769231 | AF28: 2021-09-06 | AH28: 23 | AI28: MI | AJ28: MICHIGAN | AV28: 163.4615385 | AW28: 8500 | AX28: 8750 | AY28: 104 | AZ28: 0.01223529412 | BA28: 0.6362352941 | BB28: 0.57 | BD28: 437.5 | BE28: 22750 | BF28: 23000 | BG28: 218 | BH28: 0.009582417582 | BI28: 0.4982857143 | BJ28: 0.5 | BL28: 14500 | BM28: 159 | BN28: 207 | BO28: 191 | BP28: 4134 | BQ28: 0.5702068966 | BR28: 0.57 | BU28: 2288 | BV28: 2312 | BW28: 92 | BX28: 0.5227272727 | BZ28: 6863 | CA28: 6887 | CB28: 271 | CC28: 0.5133323619 | CE28: 14338 | CF28: 14362 | CG28: 564 | CH28: 0.5113683917
A29: MD | B29: Maryland | C29: 1/24 HQW | D29: HQ | E29: 1/24 | F29: 0.54 | G29: 26 | I29: 50 | K29: 8 | L29: 5 | M29: 430 | O29: 26 | P29: 26 | Q29: 11180 | R29: 300 | T29: =+'Main Menu'!M$10 -> 60000 | U29: =+'Main Menu'!M$12 -> 20000 | W29: =IF('Main Menu'!$M$14<L29,'Main Menu'!$M$14,L29) -> 1 | Y29: 1538.461538 | Z29: 0.54 | AA29: 430 | AB29: 11180 | AC29: =+G29 -> 26 | AD29: 438 | AE29: 738 | AF29: 2021-07-03 | AH29: 24 | AI29: MN | AJ29: MINNESOTA | AV29: 168.2692308 | AW29: 8750 | AX29: 9000 | AY29: 106 | AZ29: 0.01211428571 | BA29: 0.6299428571 | BB29: 0.57 | BD29: 442.3076923 | BE29: 23000 | BF29: 23250 | BG29: 220 | BH29: 0.009565217391 | BI29: 0.4973913043 | BJ29: 0.5 | BL29: 15500 | BM29: 167 | BN29: 217 | BO29: 200 | BP29: 4342 | BQ29: 0.5602580645 | BR29: 0.57 | BU29: 2313 | BV29: 2337 | BW29: 93 | BX29: 0.5226977951 | BZ29: 6888 | CA29: 6912 | CB29: 272 | CC29: 0.5133565621 | CE29: 14363 | CF29: 14387 | CG29: 565 | CH29: 0.5113834157
A30: ME | B30: Maine | C30: 1/22 avg2HQW | D30: MQ | E30: 1/22 | F30: 0.59 | G30: 26 | H30: 0.333 | I30: 75 | J30: 115 | K30: 10 | L30: 10 | M30: 445 | N30: 667 | O30: 15 | P30: 26 | Q30: 11570 | R30: 300 | T30: =+'Main Menu'!M$10 -> 60000 | U30: =+'Main Menu'!M$12 -> 20000 | W30: =IF('Main Menu'!$M$14<L30,'Main Menu'!$M$14,L30) -> 1 | Y30: =+((U30+(T30*0.25))/26) -> 1346.153846 | Z30: 0.59 | AA30: 445 | AB30: 11570 | AC30: =IF((AB30/AA30)>P30,P30,IF((AB30/AA30)<O30,O30,(AB30/AA30))) -> 26 | AD30: 455 | AE30: 755 | AF30: 2021-09-06 | AH30: 25 | AI30: MO | AJ30: MISSOURI | AV30: 173.0769231 | AW30: 9000 | AX30: 9250 | AY30: 108 | AZ30: 0.012 | BA30: 0.624 | BB30: 0.57 | BD30: 447.1153846 | BE30: 23250 | BF30: 23500 | BG30: 222 | BH30: 0.009548387097 | BI30: 0.496516129 | BJ30: 0.5 | BL30: 16500 | BM30: 178 | BN30: 231 | BO30: 214 | BP30: 4628 | BQ30: 0.560969697 | BR30: 0.57 | BU30: 2338 | BV30: 2362 | BW30: 94 | BX30: 0.5226689478 | BZ30: 6913 | CA30: 6937 | CB30: 273 | CC30: 0.5133805873 | CE30: 14388 | CF30: 14412 | CG30: 566 | CH30: 0.5113983875
A31: MI | B31: Michigan | C31: .041*HQW | D31: HQ | E31: 0.041 | F31: 0.53 | G31: =+P31 -> 20 | H31: 0.43 | I31: 147 | J31: 180 | K31: 6 | L31: 5 | M31: 362 | O31: 14 | P31: 20 | Q31: 7240 | R31: 300 | T31: =+'Main Menu'!M$10 -> 60000 | U31: =+'Main Menu'!M$12 -> 20000 | W31: =IF('Main Menu'!$M$14<L31,'Main Menu'!$M$14,L31) -> 1 | Y31: 1538.461538 | Z31: 0.53 | AA31: 362 | AB31: 7240 | AC31: 20 | AD31: 368 | AE31: 668 | AF31: 2021-09-06 | AH31: 26 | AI31: MS | AJ31: MISSISSIPPI | AV31: 177.8846154 | AW31: 9250 | AX31: 9500 | AY31: 110 | AZ31: 0.01189189189 | BA31: 0.6183783784 | BB31: 0.57 | BD31: 451.9230769 | BE31: 23500 | BF31: 23750 | BG31: 224 | BH31: 0.009531914894 | BI31: 0.4956595745 | BJ31: 0.5 | BL31: 17500 | BM31: 188 | BN31: 244 | BO31: 226 | BP31: 4888 | BQ31: 0.5586285714 | BR31: 0.57 | BU31: 2363 | BV31: 2387 | BW31: 95 | BX31: 0.522640711 | BZ31: 6938 | CA31: 6962 | CB31: 274 | CC31: 0.5134044393 | CE31: 14413 | CF31: 14437 | CG31: 567 | CH31: 0.5114133074
A32: MN | B32: Minnesota | C32: .5*HQW/13 | D32: HQ | E32: 1/13 | F32: 0.5 | G32: 26 | H32: 0.333 | I32: 28 | L32: 0 | M32: 462 | N32: 740 | O32: 11 | P32: 26 | Q32: 12012 | R32: 300 | T32: =+'Main Menu'!M$10 -> 60000 | U32: =+'Main Menu'!M$12 -> 20000 | W32: =IF('Main Menu'!$M$14<L32,'Main Menu'!$M$14,L32) -> 0 | Y32: 1538.461538 | Z32: 0.5 | AA32: 462 | AB32: 12012 | AC32: 26 | AD32: 462 | AE32: 762 | AF32: 2021-09-06 | AH32: 27 | AI32: MT | AJ32: MONTANA | AV32: 182.6923077 | AW32: 9500 | AX32: 9750 | AY32: 112 | AZ32: 0.01178947368 | BA32: 0.6130526316 | BB32: 0.57 | BD32: 456.7307692 | BE32: 23750 | BF32: 24000 | BG32: 226 | BH32: 0.009515789474 | BI32: 0.4948210526 | BJ32: 0.5 | BL32: 18500 | BM32: 199 | BN32: 259 | BO32: 239 | BP32: 5174 | BQ32: 0.5593513514 | BR32: 0.54 | BU32: 2388 | BV32: 2412 | BW32: 96 | BX32: 0.5226130653 | BZ32: 6963 | CA32: 6987 | CB32: 275 | CC32: 0.5134281201 | CE32: 14438 | CF32: 14462 | CG32: 568 | CH32: 0.5114281756
A33: MO | B33: Missouri | C33: .04*avg2HQW | D33: MQ | E33: 0.04 | F33: 0.52 | G33: =+P33 -> 20 | H33: 0.333 | I33: 35 | L33: 0 | M33: 320 | O33: 8 | P33: 20 | Q33: 6400 | R33: 300 | T33: =+'Main Menu'!M$10 -> 60000 | U33: =+'Main Menu'!M$12 -> 20000 | W33: =IF('Main Menu'!$M$14<L33,'Main Menu'!$M$14,L33) -> 0 | Y33: =+((U33+(T33*0.25))/26) -> 1346.153846 | Z33: 0.52 | AA33: 320 | AB33: 6400 | AC33: 20 | AD33: 320 | AE33: 620 | AF33: 2021-06-12 | AH33: 28 | AI33: NC | AJ33: NORTH CAROLINA | AV33: 187.5 | AW33: 9750 | AX33: 10000 | AY33: 114 | AZ33: 0.01169230769 | BA33: 0.608 | BB33: 0.57 | BD33: 461.5384615 | BE33: 24000 | BF33: 24250 | BG33: 228 | BH33: 0.0095 | BI33: 0.494 | BJ33: 0.5 | BL33: 19500 | BM33: 206 | BN33: 268 | BO33: 247 | BP33: 5356 | BQ33: 0.5493333333 | BR33: 0.54 | BU33: 2413 | BV33: 2437 | BW33: 97 | BX33: 0.5225859925 | BZ33: 6988 | CA33: 7012 | CB33: 276 | CC33: 0.5134516314 | CE33: 14463 | CF33: 14487 | CG33: 569 | CH33: 0.5114429925
A34: MS | B34: Mississippi | C34: 1/26 HQ | D34: HQ | E34: 1/26 | F34: 0.5 | G34: 26 | H34: 0.333 | I34: 30 | L34: 0 | M34: 235 | O34: 13 | P34: 26 | Q34: 6110 | R34: 300 | T34: =+'Main Menu'!M$10 -> 60000 | U34: =+'Main Menu'!M$12 -> 20000 | W34: =IF('Main Menu'!$M$14<L34,'Main Menu'!$M$14,L34) -> 0 | Y34: 1538.461538 | Z34: 0.5 | AA34: 235 | AB34: 6110 | AC34: 26 | AD34: 235 | AE34: 535 | AF34: 2021-06-12 | AH34: 29 | AI34: ND | AJ34: NORTH DAKOTA | AV34: 192.3076923 | AW34: 10000 | AX34: 10250 | AY34: 116 | AZ34: 0.0116 | BA34: 0.6032 | BB34: 0.57 | BD34: 466.3461538 | BE34: 24250 | BF34: 24500 | BG34: 230 | BH34: 0.009484536082 | BI34: 0.4931958763 | BJ34: 0.5 | BL34: 20500 | BM34: 217 | BN34: 282 | BO34: 260 | BP34: 5642 | BQ34: 0.5504390244 | BR34: 0.54 | BU34: 2438 | BV34: 2462 | BW34: 98 | BX34: 0.522559475 | BZ34: 7013 | CA34: 7037 | CB34: 277 | CC34: 0.513474975 | CE34: 14488 | CF34: 14512 | CG34: 570 | CH34: 0.5114577581
A35: MT | B35: Montana | C35: 1.9% of wages in 2HQ | D35: MQ | E35: 0.02 | F35: 0.49 | H35: 26 | I35: 163 | L35: 0 | M35: 552 | O35: 8 | P35: 26 | Q35: 14352 | R35: 300 | T35: =+'Main Menu'!M$10 -> 60000 | U35: =+'Main Menu'!M$12 -> 20000 | W35: =IF('Main Menu'!$M$14<L35,'Main Menu'!$M$14,L35) -> 0 | Y35: =+((U35+(T35*0.25))/26) -> 1346.153846 | Z35: 0.49 | AA35: 552 | AB35: 14352 | AC35: 26 | AD35: 552 | AE35: 852 | AF35: 2021-06-27 | AH35: 30 | AI35: NE | AJ35: NEBRASKA | AV35: 197.1153846 | AW35: 10250 | AX35: 10500 | AY35: 118 | AZ35: 0.01151219512 | BA35: 0.5986341463 | BB35: 0.57 | BD35: 471.1538462 | BE35: 24500 | BF35: 24750 | BG35: 232 | BH35: 0.009469387755 | BI35: 0.4924081633 | BJ35: 0.5 | BL35: 21500 | BM35: 227 | BN35: 295 | BO35: 272 | BP35: 5902 | BQ35: 0.5490232558 | BR35: 0.54 | BU35: 2463 | BV35: 2487 | BW35: *98 | BZ35: 7038 | CA35: 7062 | CB35: 278 | CC35: 0.5134981529 | CE35: 14513 | CF35: 14537 | CG35: 571 | CH35: 0.511472473
A36: NC | B36: North Carolina | C36: 1/52 of last 2 quarters | D36: MQ | E36: 1/52 | F36: 0.5 | G36: =+P36 -> 12 | I36: 15 | L36: 0 | M36: 350 | O36: 12 | P36: 12 | Q36: 4200 | R36: 300 | T36: =+'Main Menu'!M$10 -> 60000 | U36: =+'Main Menu'!M$12 -> 20000 | W36: =IF('Main Menu'!$M$14<L36,'Main Menu'!$M$14,L36) -> 0 | Y36: =+(T36/2)/26 -> 1153.846154 | Z36: 0.5 | AA36: 350 | AB36: 4200 | AC36: =+G36 -> 12 | AD36: 350 | AE36: 650 | AF36: 2021-09-06 | AH36: 31 | AI36: NH | AJ36: NEW HAMPSHIRE | AV36: 201.9230769 | AW36: 10500 | AX36: 10750 | AY36: 120 | AZ36: 0.01142857143 | BA36: 0.5942857143 | BB36: 0.57 | BD36: 475.9615385 | BE36: 24750 | BF36: 25000 | BG36: 234 | BH36: 0.009454545455 | BI36: 0.4916363636 | BJ36: 0.5 | BL36: 22500 | BM36: 238 | BN36: 309 | BO36: 286 | BP36: 6188 | BQ36: 0.5500444444 | BR36: 0.54 | BU36: 2488 | BV36: 2512 | BW36: 99 | BX36: 0.5172829582 | BZ36: 7063 | CA36: 7087 | CB36: 279 | CC36: 0.5135211666 | CE36: 14538 | CF36: 14562 | CG36: 572 | CH36: 0.5114871372
A37: ND | B37: North Dakota | C37: 1/65 tot wage in 2 HQ and .5 wages in 3rd highest qtr | D37: MQ | E37: 1/65 | F37: 0.4 | H37: 26 | I37: 43 | L37: 0 | M37: 618 | O37: 12 | P37: 26 | Q37: 16068 | R37: 300 | T37: =+'Main Menu'!M$10 -> 60000 | U37: =+'Main Menu'!M$12 -> 20000 | W37: =IF('Main Menu'!$M$14<L37,'Main Menu'!$M$14,L37) -> 0 | Y37: =+((U37+(T37*0.25))/26) -> 1346.153846 | Z37: 0.4 | AA37: 538.4615385 | AB37: 14000 | AC37: =IF((AB37/AA37)>P37,P37,IF((AB37/AA37)<O37,O37,(AB37/AA37))) -> 26 | AD37: 538.4615385 | AE37: 838.4615385 | AF37: 2021-06-19 | AH37: 32 | AI37: NJ | AJ37: NEW JERSEY | AV37: 206.7307692 | AW37: 10750 | AX37: 11000 | AY37: 122 | AZ37: 0.01134883721 | BA37: 0.5901395349 | BB37: 0.57 | BD37: 480.7692308 | BE37: 25000 | BF37: 25250 | BG37: 236 | BH37: 0.00944 | BI37: 0.49088 | BJ37: 0.5 | BL37: 23500 | BM37: 249 | BN37: 324 | BO37: 299 | BP37: 6474 | BQ37: 0.5509787234 | BR37: 0.54 | BZ37: 7088 | CA37: 7112 | CB37: 280 | CC37: 0.5135440181 | CE37: ​14563 | CF37: 14587 | CG37: 573​
A38: NE | B38: Nebraska | C38: .5 AWW rounded down to nearest $1 not to exceed .5 state AWW | D38: WW | E38: 0.5 | F38: 0.5 | G38: 26 | H38: 0.333 | I38: 70 | L38: 0 | M38: 440 | O38: 10 | P38: 26 | Q38: 11440 | R38: 300 | T38: =+'Main Menu'!M$10 -> 60000 | U38: =+'Main Menu'!M$12 -> 20000 | W38: =IF('Main Menu'!$M$14<L38,'Main Menu'!$M$14,L38) -> 0 | Y38: 1538.461538 | Z38: 0.5 | AA38: 440 | AB38: 11440 | AC38: =IF((AB38/AA38)>P38,P38,IF((AB38/AA38)<O38,O38,(AB38/AA38))) -> 26 | AD38: 440 | AE38: 740 | AF38: 2021-06-19 | AH38: 33 | AI38: NM | AJ38: NEW MEXICO | AV38: 211.5384615 | AW38: 11000 | AX38: 11250 | AY38: 124 | AZ38: 0.01127272727 | BA38: 0.5861818182 | BB38: 0.57 | BD38: 485.5769231 | BE38: 25250 | BF38: 25500 | BG38: 238 | BH38: 0.009425742574 | BI38: 0.4901386139 | BJ38: 0.5 | BL38: 24500 | BM38: 254 | BN38: 330 | BO38: 305 | BP38: 6604 | BQ38: 0.5391020408 | BR38: 0.54 | BZ38: 7113 | CA38: 7137 | CB38: 281 | CC38: 0.5135667088 | CE38: ​14588 | CF38: 14612 | CG38: 574​
A39: NH | B39: New Hampshire | C39: Table | D39: AW | E39: 0.01 | F39: 0.54 | G39: 26 | I39: 32 | L39: 0 | M39: 427 | O39: 26 | P39: 26 | Q39: 11102 | R39: 300 | T39: =+'Main Menu'!M$10 -> 60000 | U39: =+'Main Menu'!M$12 -> 20000 | W39: =IF('Main Menu'!$M$14<L39,'Main Menu'!$M$14,L39) -> 0 | Y39: =+((U39+(T39*0.25))/26) -> 1346.153846 | Z39: =IF((Y39*52)<9000,59%,IF((Y39*52)<18500,57%,IF((Y39*52)<27500,54%,IF((Y39*52)<39500,53%,52%)))) -> 0.52 | AA39: 427 | AB39: 11102 | AC39: =+G39 -> 26 | AD39: 427 | AE39: 727 | AF39: 2021-06-19 | AH39: 34 | AI39: NV | AJ39: NEVADA | AV39: 216.3461538 | AW39: 11250 | AX39: 11500 | AY39: 126 | AZ39: 0.0112 | BA39: 0.5824 | BB39: 0.57 | BD39: 490.3846154 | BE39: 25500 | BF39: 25750 | BG39: 240 | BH39: 0.009411764706 | BI39: 0.4894117647 | BJ39: 0.48 | BL39: 25500 | BM39: 265 | BN39: 344 | BO39: 318 | BP39: 6890 | BQ39: 0.5403921569 | BR39: 0.54 | BZ39: 7138 | CA39: 7162 | CB39: 282 | CC39: 0.5135892407 | CE39: 14613 | CF39: 14637​ | CG39: 575​
A40: NJ | B40: New Jersey | C40: .6*avg base wk wg | D40: WW | E40: 0.6 | F40: 0.6 | G40: 26 | H40: 1 | I40: 120 | J40: 138 | K40: 30 | L40: 2 | M40: 713 | O40: 20 | P40: 26 | Q40: 18538 | R40: 300 | T40: =+'Main Menu'!M$10 -> 60000 | U40: =+'Main Menu'!M$12 -> 20000 | W40: =IF('Main Menu'!$M$14<L40,'Main Menu'!$M$14,L40) -> 1 | Y40: =+(T40/52) -> 1153.846154 | Z40: =IF(C40="Table",F40,F40) -> 0.6 | AA40: 692.3076923 | AB40: 18000 | AC40: =IF((AB40/AA40)>P40,P40,IF((AB40/AA40)<O40,O40,(AB40/AA40))) -> 26 | AD40: 722.3076923 | AE40: 1022.307692 | AF40: 2021-09-06 | AH40: 35 | AI40: NY | AJ40: NEW YORK | AV40: 221.1538462 | AW40: 11500 | AX40: 11750 | AY40: 128 | AZ40: 0.01113043478 | BA40: 0.5787826087 | BB40: 0.57 | BD40: 495.1923077 | BE40: 25750 | BF40: 26000 | BG40: 242 | BH40: 0.009398058252 | BI40: 0.4886990291 | BJ40: 0.48 | BL40: 26500 | BM40: 275 | BN40: 357 | BO40: 330 | BP40: 7150 | BQ40: 0.5396226415 | BR40: 0.54 | BZ40: 7163 | CA40: 7187 | CB40: 283 | CC40: 0.5136116152 | CE40: 14638 | CF40: 14662​ | CG40: ​576
A41: NM | B41: New Mexico | C41: .535 avg WW in HQ | D41: HQ | E41: 0.535 | F41: 0.54 | G41: 26 | H41: 0.6 | I41: 86 | J41: 129 | K41: 25 | L41: 2 | M41: 461 | N41: 511 | O41: 14 | P41: 26 | Q41: =+M41*P41 -> 11986 | R41: 300 | T41: =+'Main Menu'!M$10 -> 60000 | U41: =+'Main Menu'!M$12 -> 20000 | W41: =IF('Main Menu'!$M$14<L41,'Main Menu'!$M$14,L41) -> 1 | Y41: =+U41/13 -> 1538.461538 | Z41: 0.54 | AA41: =IF((Y41*Z41)>$M41,$M41,IF((Y41*Z41)<$I41,$I41,$Y41*$Z41)) -> 461 | AB41: =IF((AA41*P41)>Q41,Q41,(AA41*P41)) -> 11986 | AC41: =IF((AB41/AA41)>P41,P41,IF((AB41/AA41)<O41,O41,(AB41/AA41))) -> 26 | AD41: =IF(W41>0,AA41+(W41*K41),AA41) -> 486 | AE41: =+AD41+R41 -> 786 | AF41: 2021-09-06 | AH41: 36 | AI41: OH | AJ41: OHIO | AV41: 225.9615385 | AW41: 11750 | AX41: 12000 | AY41: 130 | AZ41: 0.01106382979 | BA41: 0.5753191489 | BB41: 0.57 | BD41: 500 | BE41: 26000 | BF41: 26250 | BG41: 244 | BH41: 0.009384615385 | BI41: 0.488 | BJ41: 0.48 | BL41: 27500 | BM41: 286 | BN41: 372 | BO41: 343 | BP41: 7436 | BQ41: 0.5408 | BR41: 0.53 | BZ41: 7188 | CA41: 7212 | CB41: 284 | CC41: 0.5136338342 | CE41: 14663 | CF41: 14687​ | CG41: ​577
A42: NV | B42: Nevada | C42: 1/25 HQ | D42: HQ | E42: 1/25 | F42: 0.52 | G42: 26 | H42: 0.333 | I42: 16 | L42: 0 | M42: 483 | O42: 8 | P42: 26 | Q42: 12558 | R42: 300 | T42: =+'Main Menu'!M$10 -> 60000 | U42: =+'Main Menu'!M$12 -> 20000 | W42: =IF('Main Menu'!$M$14<L42,'Main Menu'!$M$14,L42) -> 0 | Y42: 1538.461538 | Z42: 0.52 | AA42: 483 | AB42: 12558 | AC42: =IF((AB42/AA42)>P42,P42,IF((AB42/AA42)<O42,O42,(AB42/AA42))) -> 26 | AD42: 483 | AE42: 783 | AF42: 2021-09-06 | AH42: 37 | AI42: OK | AJ42: OKLAHOMA | AV42: 230.7692308 | AW42: 12000 | AX42: 12250 | AY42: 132 | AZ42: 0.011 | BA42: 0.572 | BB42: 0.57 | BD42: 504.8076923 | BE42: 26250 | BF42: 26500 | BG42: 246 | BH42: 0.009371428571 | BI42: 0.4873142857 | BJ42: 0.48 | BL42: 28500 | BM42: 290 | BN42: 377 | BO42: 348 | BP42: 7540 | BQ42: 0.529122807 | BR42: 0.53 | BZ42: 7213 | CA42: 7237 | CB42: 285 | CC42: 0.5136558991 | CE42: 14688 | CF42: 14712​ | CG42: ​578
A43: NY | B43: New York | C43: 1/26 HQ (if HQW < $3,575 then 1/25 HQ) | D43: HQ | E43: 1/26 | F43: 0.5 | G43: 26 | I43: 104 | L43: 0 | M43: 504 | O43: 26 | P43: 26 | Q43: 13104 | R43: 300 | T43: =+'Main Menu'!M$10 -> 60000 | U43: =+'Main Menu'!M$12 -> 20000 | W43: =IF('Main Menu'!$M$14<L43,'Main Menu'!$M$14,L43) -> 0 | Y43: 1538.461538 | Z43: 0.5 | AA43: 504 | AB43: 13104 | AC43: =+G43 -> 26 | AD43: 504 | AE43: 804 | AF43: 2021-09-06 | AH43: 38 | AI43: OR | AJ43: OREGON | AV43: 235.5769231 | AW43: 12250 | AX43: 12500 | AY43: 134 | AZ43: 0.01093877551 | BA43: 0.5688163265 | BB43: 0.54 | BD43: 509.6153846 | BE43: 26500 | BF43: 26750 | BG43: 248 | BH43: 0.009358490566 | BI43: 0.4866415094 | BJ43: 0.48 | BL43: 29500 | BM43: 301 | BN43: 391 | BO43: 361 | BP43: 7826 | BQ43: 0.5305762712 | BR43: 0.53 | BZ43: 7238 | CA43: 7262 | CB43: 286 | CC43: 0.5136778116 | CE43: 14713 | CF43: 14737​ | CG43: ​579
A44: OH | B44: Ohio | C44: .5*avg base wk wg | D44: WW | E44: 0.5 | F44: 0.5 | G44: 26 | H44: 1 | I44: 135 | K44: 25 | L44: 5 | M44: 480 | N44: 647 | O44: 20 | P44: 26 | Q44: 12480 | R44: 300 | T44: =+'Main Menu'!M$10 -> 60000 | U44: =+'Main Menu'!M$12 -> 20000 | W44: =IF('Main Menu'!$M$14<L44,'Main Menu'!$M$14,L44) -> 1 | Y44: =+(T44/52) -> 1153.846154 | Z44: 0.5 | AA44: 480 | AB44: 12480 | AC44: =IF((AB44/AA44)>P44,P44,IF((AB44/AA44)<O44,O44,(AB44/AA44))) -> 26 | AD44: 505 | AE44: 805 | AF44: 2021-06-26 | AH44: 39 | AI44: PA | AJ44: PENNSYLVANIA | AV44: 240.3846154 | AW44: 12500 | AX44: 12750 | AY44: 136 | AZ44: 0.01088 | BA44: 0.56576 | BB44: 0.54 | BD44: 514.4230769 | BE44: 26750 | BF44: 27000 | BG44: 250 | BH44: 0.009345794393 | BI44: 0.4859813084 | BJ44: 0.48 | BL44: 30500 | BM44: 311 | BN44: 404 | BO44: 373 | BP44: 8086 | BQ44: 0.5302295082 | BR44: 0.53 | BZ44: 7263 | CA44: 7287 | CB44: 287 | CC44: 0.5136995732 | CE44: 14738 | CF44: 14762​ | CG44: 580​
A45: OK | B45: Oklahoma | C45: 1/23 HQ | D45: HQ | E45: 1/23 | F45: 0.57 | G45: 26 | H45: 1 | I45: 16 | L45: 0 | M45: 539 | O45: 16 | P45: 26 | Q45: 14014 | R45: 300 | T45: =+'Main Menu'!M$10 -> 60000 | U45: =+'Main Menu'!M$12 -> 20000 | W45: =IF('Main Menu'!$M$14<L45,'Main Menu'!$M$14,L45) -> 0 | Y45: 1538.461538 | Z45: 0.57 | AA45: 539 | AB45: 14014 | AC45: =IF((AB45/AA45)>P45,P45,IF((AB45/AA45)<O45,O45,(AB45/AA45))) -> 26 | AD45: 539 | AE45: 839 | AF45: 2021-06-26 | AH45: 40 | AI45: PR | AJ45: PUERTO RICO | AV45: 245.1923077 | AW45: 12750 | AX45: 13000 | AY45: 138 | AZ45: 0.01082352941 | BA45: 0.5628235294 | BB45: 0.54 | BD45: 519.2307692 | BE45: 27000 | BF45: 27250 | BG45: 252 | BH45: 0.009333333333 | BI45: 0.4853333333 | BJ45: 0.48 | BL45: 31500 | BM45: 321 | BN45: 417 | BO45: 385 | BP45: 8346 | BQ45: 0.5299047619 | BR45: 0.53 | BZ45: 7288 | CA45: 7312 | CB45: 288 | CC45: 0.5137211855 | CE45: 14763 | CF45: 14787​ | CG45: ​581
A46: OR | B46: Oregon | C46: .0125 of BPW | D46: AW | E46: 0.0125 | F46: 0.65 | G46: 26 | H46: 0.333 | I46: 151 | L46: 0 | M46: 648 | O46: 3 | P46: 26 | Q46: 16848 | R46: 300 | T46: =+'Main Menu'!M$10 -> 60000 | U46: =+'Main Menu'!M$12 -> 20000 | W46: =IF('Main Menu'!$M$14<L46,'Main Menu'!$M$14,L46) -> 0 | Y46: =+(T46/52) -> 1153.846154 | Z46: 0.65 | AA46: 648 | AB46: 16848 | AC46: =IF((AB46/AA46)>P46,P46,IF((AB46/AA46)<O46,O46,(AB46/AA46))) -> 26 | AD46: 648 | AE46: 948 | AF46: 2021-09-06 | AH46: 41 | AI46: RI | AJ46: RHODE ISLAND | AV46: 250 | AW46: 13000 | AX46: 13250 | AY46: 140 | AZ46: 0.01076923077 | BA46: 0.56 | BB46: 0.54 | BD46: 524.0384615 | BE46: 27250 | BF46: 27500 | BG46: 254 | BH46: 0.009321100917 | BI46: 0.4846972477 | BJ46: 0.48 | BL46: 32500 | BM46: 331 | BN46: 430 | BO46: 397 | BP46: 8606 | BQ46: 0.5296 | BR46: 0.53 | BZ46: 7313 | CA46: 7337 | CB46: 289 | CC46: 0.5137426501 | CE46: 14788 | CF46: 14812​ | CG46: ​582
A47: PA | B47: Pennsylvania | C47: Table | D47: HQ | E47: 1/25 | F47: 0.51 | G47: 26 | I47: 68 | J47: 76 | K47: 5 | L47: 2 | M47: 572 | N47: 580 | O47: 18 | P47: 26 | Q47: 14872 | R47: 300 | T47: =+'Main Menu'!M$10 -> 60000 | U47: =+'Main Menu'!M$12 -> 20000 | W47: =IF('Main Menu'!$M$14<L47,'Main Menu'!$M$14,L47) -> 1 | Y47: =+((U47+(T47*0.25))/26) -> 1346.153846 | Z47: 0.51 | AA47: 572 | AB47: 14872 | AC47: =IF((AB47/AA47)>P47,P47,IF((AB47/AA47)<O47,O47,(AB47/AA47))) -> 26 | AD47: 577 | AE47: 877 | AF47: 2021-09-06 | AH47: 42 | AI47: SC | AJ47: SOUTH CAROLINA | AV47: 254.8076923 | AW47: 13250 | AX47: 13500 | AY47: 142 | AZ47: 0.01071698113 | BA47: 0.5572830189 | BB47: 0.54 | BD47: 528.8461538 | BE47: 27500 | BF47: 27750 | BG47: 256 | BH47: 0.009309090909 | BI47: 0.4840727273 | BJ47: 0.48 | BL47: 33500 | BM47: 342 | BN47: 445 | BO47: 410 | BP47: 8892 | BQ47: 0.5308656716 | BR47: 0.53 | BZ47: 7338 | CA47: 7362 | CB47: 290 | CC47: 0.5137639684
A48: PR | B48: Puerto Rico | C48: Table | D48: HQ | E48: 1/26 | F48: 0.5 | G48: 26 | I48: 33 | L48: 0 | M48: 190 | O48: 26 | P48: 26 | Q48: 4940 | R48: 300 | T48: =+'Main Menu'!M$10 -> 60000 | U48: =+'Main Menu'!M$12 -> 20000 | W48: =IF('Main Menu'!$M$14<L48,'Main Menu'!$M$14,L48) -> 0 | Y48: =+((U48+(T48*0.25))/26) -> 1346.153846 | Z48: 0.5 | AA48: 190 | AB48: 4940 | AC48: =+G48 -> 26 | AD48: 190 | AE48: 490 | AF48: 2021-09-06 | AH48: 43 | AI48: SD | AJ48: SOUTH DAKOTA | AV48: 259.6153846 | AW48: 13500 | AX48: 13750 | AY48: 144 | AZ48: 0.01066666667 | BA48: 0.5546666667 | BB48: 0.54 | BD48: 533.6538462 | BE48: 27750 | BF48: 28000 | BG48: 258 | BH48: 0.009297297297 | BI48: 0.4834594595 | BJ48: 0.48 | BL48: 34500 | BM48: 352 | BN48: 458 | BO48: 422 | BP48: 9152 | BQ48: 0.5305507246 | BR48: 0.53 | BZ48: 7363 | CA48: 7387 | CB48: 291 | CC48: 0.5137851419
A49: RI | B49: Rhode Island | C49: .0385 * Ave of 2HQW | D49: MQ | E49: 0.0385 | F49: 0.5 | G49: 26 | H49: 0.333 | I49: 53 | J49: 103 | K49: 15 | L49: 5 | M49: 586 | N49: 732 | O49: 17 | P49: 26 | Q49: 15236 | R49: 300 | T49: =+'Main Menu'!M$10 -> 60000 | U49: =+'Main Menu'!M$12 -> 20000 | W49: =IF('Main Menu'!$M$14<L49,'Main Menu'!$M$14,L49) -> 1 | Y49: =+((U49+(T49*0.25))/26) -> 1346.153846 | Z49: 0.5 | AA49: 586 | AB49: 15236 | AC49: =IF((AB49/AA49)>P49,P49,IF((AB49/AA49)<O49,O49,(AB49/AA49))) -> 26 | AD49: 601 | AE49: 901 | AF49: 2021-09-06 | AH49: 44 | AI49: TN | AJ49: TENNESSEE | AV49: 264.4230769 | AW49: 13750 | AX49: 14000 | AY49: 146 | AZ49: 0.01061818182 | BA49: 0.5521454545 | BB49: 0.54 | BD49: 538.4615385 | BE49: 28000 | BF49: 28250 | BG49: 260 | BH49: 0.009285714286 | BI49: 0.4828571429 | BJ49: 0.48 | BL49: 35500 | BM49: 362 | BN49: 471 | BO49: 434 | BP49: 9412 | BQ49: 0.5302535211 | BR49: 0.53 | BZ49: 7388 | CA49: 7412 | CB49: 292 | CC49: 0.5138061722
A50: SC | B50: South Carolina | C50: .5* ave WW in HQ | D50: HQ | E50: 0.5 | F50: 0.5 | G50: 26 | H50: 0.333 | I50: 42 | L50: 0 | M50: 326 | O50: 13 | P50: 20 | Q50: 6520 | R50: 300 | T50: =+'Main Menu'!M$10 -> 60000 | U50: =+'Main Menu'!M$12 -> 20000 | W50: =IF('Main Menu'!$M$14<L50,'Main Menu'!$M$14,L50) -> 0 | Y50: 1538.461538 | Z50: 0.5 | AA50: 326 | AB50: 6520 | AC50: 20 | AD50: 326 | AE50: 626 | AF50: 2021-06-30 | AH50: 45 | AI50: TX | AJ50: TEXAS | AV50: 269.2307692 | AW50: 14000 | AX50: 14250 | AY50: 148 | AZ50: 0.01057142857 | BA50: 0.5497142857 | BB50: 0.54 | BD50: 543.2692308 | BE50: 28250 | BF50: 28500 | BG50: 262 | BH50: 0.009274336283 | BI50: 0.4822654867 | BJ50: 0.48 | BL50: 36500 | BM50: 372 | BN50: 484 | BO50: 446 | BP50: 9672 | BQ50: 0.5299726027 | BR50: 0.53 | BZ50: 7413 | CA50: 7437 | CB50: 293 | CC50: 0.5138270606
A51: SD | B51: South Dakota | C51: 1/26 HQ | D51: HQ | E51: 1/26 | F51: 0.5 | G51: 26 | H51: 0.333 | I51: 28 | L51: 0 | M51: 414 | O51: 15 | P51: 26 | Q51: 10764 | R51: 300 | T51: =+'Main Menu'!M$10 -> 60000 | U51: =+'Main Menu'!M$12 -> 20000 | W51: =IF('Main Menu'!$M$14<L51,'Main Menu'!$M$14,L51) -> 0 | Y51: 1538.461538 | Z51: 0.5 | AA51: 414 | AB51: 10764 | AC51: 26 | AD51: 414 | AE51: 714 | AF51: 2021-06-26 | AH51: 46 | AI51: UT | AJ51: UTAH | AV51: 274.0384615 | AW51: 14250 | AX51: 14500 | AY51: 150 | AZ51: 0.01052631579 | BA51: 0.5473684211 | BB51: 0.54 | BD51: 548.0769231 | BE51: 28500 | BF51: 28750 | BG51: 264 | BH51: 0.009263157895 | BI51: 0.4816842105 | BJ51: 0.48 | BL51: 37500 | BM51: 383 | BN51: 498 | BO51: 460 | BP51: 9958 | BQ51: 0.5310933333 | BR51: 0.53 | BZ51: 7438 | CA51: 7462 | CB51: 294 | CC51: 0.5138478086
A52: TN | B52: Tennessee | C52: Table - 1/26 avg 2HQW | D52: MQ | E52: 1/26 | F52: 0.5 | G52: 26 | H52: 0.25 | I52: 30 | L52: 0 | M52: 275 | O52: 13 | P52: 26 | Q52: 7150 | R52: 300 | T52: =+'Main Menu'!M$10 -> 60000 | U52: =+'Main Menu'!M$12 -> 20000 | W52: =IF('Main Menu'!$M$14<L52,'Main Menu'!$M$14,L52) -> 0 | Y52: =+((U52+(T52*0.25))/26) -> 1346.153846 | Z52: 0.5 | AA52: 275 | AB52: 7150 | AC52: 26 | AD52: 275 | AE52: 575 | AF52: 2021-07-03 | AH52: 47 | AI52: VA | AJ52: VIRGINIA | AV52: 278.8461538 | AW52: 14500 | AX52: 14750 | AY52: 152 | AZ52: 0.01048275862 | BA52: 0.5451034483 | BB52: 0.54 | BD52: 552.8846154 | BE52: 28750 | BF52: 29000 | BG52: 266 | BH52: 0.009252173913 | BI52: 0.4811130435 | BJ52: 0.48 | BL52: 38500 | BM52: 394 | BN52: 512 | BO52: 473 | BP52: 10244 | BQ52: 0.5321558442 | BR52: 0.53 | BZ52: 7463 | CA52: 7487 | CB52: *294
A53: TX | B53: Texas | C53: 1/25 HQ | D53: HQ | E53: 1/25 | F53: 0.52 | G53: 26 | H53: 0.27 | I53: 69 | L53: 0 | M53: 535 | O53: 10 | P53: 26 | Q53: 13910 | R53: 300 | T53: =+'Main Menu'!M$10 -> 60000 | U53: =+'Main Menu'!M$12 -> 20000 | W53: =IF('Main Menu'!$M$14<L53,'Main Menu'!$M$14,L53) -> 0 | Y53: 1538.461538 | Z53: 0.52 | AA53: 535 | AB53: 13910 | AC53: 26 | AD53: 535 | AE53: 835 | AF53: 2021-06-26 | AH53: 48 | AI53: VI | AJ53: VIRGIN ISLANDS | AV53: 283.6538462 | AW53: 14750 | AX53: 15000 | AY53: 154 | AZ53: 0.01044067797 | BA53: 0.5429152542 | BB53: 0.54 | BD53: 557.6923077 | BE53: 29000 | BF53: 29250 | BG53: 268 | BH53: 0.00924137931 | BI53: 0.4805517241 | BJ53: 0.48 | BL53: 39500 | BM53: 405 | BN53: 527 | BO53: 486 | BP53: 10530 | BQ53: 0.533164557 | BR53: 0.52 | BZ53: 7488 | CA53: 7512 | CB53: 295 | CC53: 0.5121527778
A54: UT | B54: Utah | C54: 1/26 HQ - $5 | D54: HQ | E54: 1/26 | F54: 0.5 | H54: 0.27 | I54: 32 | L54: 0 | M54: 580 | O54: 10 | P54: 26 | Q54: 15080 | R54: 300 | T54: =+'Main Menu'!M$10 -> 60000 | U54: =+'Main Menu'!M$12 -> 20000 | W54: =IF('Main Menu'!$M$14<L54,'Main Menu'!$M$14,L54) -> 0 | Y54: 1538.461538 | Z54: 0.5 | AA54: 580 | AB54: 15080 | AC54: 26 | AD54: 580 | AE54: 880 | AF54: 2021-06-26 | AH54: 49 | AI54: VT | AJ54: VERMONT | AV54: 288.4615385 | AW54: 15000 | AX54: 15250 | AY54: 156 | AZ54: 0.0104 | BA54: 0.5408 | BB54: 0.54 | BD54: 562.5 | BE54: 29250 | BF54: 29500 | BG54: 270 | BH54: 0.009230769231 | BI54: 0.48 | BJ54: 0.48 | BZ54: 7513 | CA54: 7537 | CB54: 296 | CC54: 0.5121788899
A55: VA | B55: Virginia | C55: 1/50 tot2HQW (Table) | D55: MQ | E55: 1/50 | F55: 0.52 | H55: 26 | I55: 60 | L55: 0 | M55: 378 | O55: 12 | P55: 26 | Q55: 9828 | R55: 300 | T55: =+'Main Menu'!M$10 -> 60000 | U55: =+'Main Menu'!M$12 -> 20000 | W55: =IF('Main Menu'!$M$14<L55,'Main Menu'!$M$14,L55) -> 0 | Y55: =+((U55+(T55*0.25))/26) -> 1346.153846 | Z55: 0.52 | AA55: 378 | AB55: 9828 | AC55: 26 | AD55: 378 | AE55: 678 | AF55: 2021-09-06 | AH55: 50 | AI55: WA | AJ55: WASHINGTON | AV55: 293.2692308 | AW55: 15250 | AX55: 15500 | AY55: 158 | AZ55: 0.01036065574 | BA55: 0.5387540984 | BB55: 0.54 | BD55: 567.3076923 | BE55: 29500 | BF55: 29750 | BG55: 272 | BH55: 0.009220338983 | BI55: 0.4794576271 | BJ55: 0.48 | BZ55: 7538 | CA55: 7562 | CB55: 297 | CC55: 0.5122048289
A56: VI | B56: Virgin Islands | C56: 1/26 HQ | D56: HQ | E56: 1/26 | F56: 0.5 | G56: 26 | H56: 0.333 | I56: 33 | L56: 0 | M56: 602 | O56: 13 | P56: 26 | Q56: 15652 | R56: 300 | T56: =+'Main Menu'!M$10 -> 60000 | U56: =+'Main Menu'!M$12 -> 20000 | W56: =IF('Main Menu'!$M$14<L56,'Main Menu'!$M$14,L56) -> 0 | Y56: 1538.461538 | Z56: 0.5 | AA56: 602 | AB56: 15652 | AC56: 26 | AD56: 602 | AE56: 902 | AF56: 2021-09-06 | AH56: 51 | AI56: WI | AJ56: WISCONSIN | AV56: 298.0769231 | AW56: 15500 | AX56: 15750 | AY56: 160 | AZ56: 0.01032258065 | BA56: 0.5367741935 | BB56: 0.54 | BD56: 572.1153846 | BE56: 29750 | BF56: 30000 | BG56: 274 | BH56: 0.009210084034 | BI56: 0.4789243697 | BJ56: 0.48 | BZ56: 7563 | CA56: 7587 | CB56: 298 | CC56: 0.5122305963
A57: VT | B57: Vermont | C57: 1/45 tot2HQW | D57: MQ | E57: 1/45 | F57: 0.58 | G57: 26 | H57: 0.46 | I57: 72 | L57: 0 | M57: 513 | O57: 21 | P57: 26 | Q57: 13338 | R57: 300 | T57: =+'Main Menu'!M$10 -> 60000 | U57: =+'Main Menu'!M$12 -> 20000 | W57: =IF('Main Menu'!$M$14<L57,'Main Menu'!$M$14,L57) -> 0 | Y57: =+((U57+(T57*0.25))/26) -> 1346.153846 | Z57: 0.58 | AA57: 513 | AB57: 13338 | AC57: 26 | AD57: 513 | AE57: 813 | AF57: 2021-09-06 | AH57: 52 | AI57: WV | AJ57: WEST VIRGINIA | AV57: 302.8846154 | AW57: 15750 | AX57: 16000 | AY57: 162 | AZ57: 0.01028571429 | BA57: 0.5348571429 | BB57: 0.54 | BD57: 576.9230769 | BE57: 30000 | BF57: 30250 | BG57: 276 | BH57: 0.0092 | BI57: 0.4784 | BJ57: 0.48 | BZ57: 7588 | CA57: 7612 | CB57: 299 | CC57: 0.512256194
A58: WA | B58: Washington | C58: .0385 avg2HQW | D58: MQ | E58: 0.0385 | F58: 0.5 | G58: 26 | H58: 0.333 | I58: 188 | L58: 0 | M58: 790 | O58: 1 | P58: 26 | Q58: 20540 | R58: 300 | T58: =+'Main Menu'!M$10 -> 60000 | U58: =+'Main Menu'!M$12 -> 20000 | W58: =IF('Main Menu'!$M$14<L58,'Main Menu'!$M$14,L58) -> 0 | Y58: =+((U58+(T58*0.25))/26) -> 1346.153846 | Z58: 0.5 | AA58: 673.0769231 | AB58: 17500 | AC58: 26 | AD58: 673.0769231 | AE58: 973.0769231 | AF58: 2021-09-06 | AH58: 53 | AI58: WY | AJ58: WYOMING | AV58: 307.6923077 | AW58: 16000 | AX58: 16250 | AY58: 164 | AZ58: 0.01025 | BA58: 0.533 | BB58: 0.54 | BD58: 581.7307692 | BE58: 30250 | BF58: 30500 | BG58: 278 | BH58: 0.009190082645 | BI58: 0.4778842975 | BJ58: 0.48 | BZ58: 7613 | CA58: 7637 | CB58: 300 | CC58: 0.5122816235
A59: WI | B59: Wisconsin | C59: .04 HQW | D59: HQ | E59: 0.04 | F59: 0.52 | G59: 26 | H59: 0.4 | I59: 54 | L59: 0 | M59: 370 | O59: 14 | P59: 26 | Q59: 9620 | R59: 300 | T59: =+'Main Menu'!M$10 -> 60000 | U59: =+'Main Menu'!M$12 -> 20000 | W59: =IF('Main Menu'!$M$14<L59,'Main Menu'!$M$14,L59) -> 0 | Y59: 1538.461538 | Z59: 0.52 | AA59: 370 | AB59: 9620 | AC59: 26 | AD59: 370 | AE59: 670 | AF59: 2021-09-06 | AV59: 312.5 | AW59: 16250 | AX59: 16500 | AY59: 166 | AZ59: 0.01021538462 | BA59: 0.5312 | BB59: 0.54 | BD59: 586.5384615 | BE59: 30500 | BF59: 30750 | BG59: 280 | BH59: 0.009180327869 | BI59: 0.4773770492 | BJ59: 0.48 | BZ59: 7638 | CA59: 7662 | CB59: 301 | CC59: 0.5123068866
A60: WV | B60: West Virginia | C60: .55 of 1/52 wgs in class | D60: AW | E60: 1/52 | F60: 0.55 | G60: 26 | H60: 0.3 | I60: 24 | L60: 0 | M60: 424 | O60: 26 | P60: 26 | Q60: 11024 | R60: 300 | T60: =+'Main Menu'!M$10 -> 60000 | U60: =+'Main Menu'!M$12 -> 20000 | W60: =IF('Main Menu'!$M$14<L60,'Main Menu'!$M$14,L60) -> 0 | Y60: =+T60/52 -> 1153.846154 | Z60: 0.55 | AA60: 424 | AB60: 11024 | AC60: =+G60 -> 26 | AD60: 424 | AE60: 724 | AF60: 2021-06-19 | AV60: 317.3076923 | AW60: 16500 | AX60: 16750 | AY60: 168 | AZ60: 0.01018181818 | BA60: 0.5294545455 | BB60: 0.54 | BD60: 591.3461538 | BE60: 30750 | BF60: 31000 | BG60: 282 | BH60: 0.009170731707 | BI60: 0.4768780488 | BJ60: 0.475 | BZ60: 7663 | CA60: 7687 | CB60: 302 | CC60: 0.5123319849
A61: WY | B61: Wyoming | C61: .04 HQW | D61: HQ | E61: 0.04 | F61: 0.52 | G61: 26 | H61: 0.3 | I61: 36 | L61: 0 | M61: 508 | O61: 11 | P61: 26 | Q61: 13208 | R61: 300 | T61: =+'Main Menu'!M$10 -> 60000 | U61: =+'Main Menu'!M$12 -> 20000 | W61: =IF('Main Menu'!$M$14<L61,'Main Menu'!$M$14,L61) -> 0 | Y61: 1538.461538 | Z61: 0.52 | AA61: 508 | AB61: 13208 | AC61: =IF((AB61/AA61)>P61,P61,IF((AB61/AA61)<O61,O61,(AB61/AA61))) -> 26 | AD61: 508 | AE61: 808 | AF61: 2021-06-19 | BZ61: 7688 | CA61: 7712 | CB61: 303 | CC61: 0.5123569199
BZ62: 7713 | CA62: 7737 | CB62: 304 | CC62: 0.5123816932
BZ63: 7738 | CA63: 7762 | CB63: 305 | CC63: 0.5124063065
BZ64: 7763 | CA64: 7787 | CB64: 306 | CC64: 0.5124307613
BZ65: 7788 | CA65: 7812 | CB65: 307 | CC65: 0.5124550591
BZ66: 7813 | CA66: 7837 | CB66: 308 | CC66: 0.5124792013
BZ67: 7838 | CA67: 7862 | CB67: 309 | CC67: 0.5125031896
BZ68: 7863 | CA68: 7887 | CB68: 310 | CC68: =+CB68/(BZ68/13) -> 0.5125270253
BZ69: 7888 | CA69: 7912 | CB69: 311 | CC69: 0.5125507099
BZ70: 7913 | CA70: 7937 | CB70: 312 | CC70: 0.5125742449
BZ71: 7938 | CA71: 7962 | CB71: 313 | CC71: 0.5125976316
BZ72: 7963 | CA72: 7987 | CB72: 314 | CC72: 0.5126208715
BZ73: 7988 | CA73: 8012 | CB73: 315 | CC73: 0.5126439659
BZ74: 8013 | CA74: 8037 | CB74: 316 | CC74: 0.5126669163
BZ75: 8038 | CA75: 8062 | CB75: 317 | CC75: 0.5126897238
BZ76: 8063 | CA76: 8087 | CB76: 318 | CC76: 0.5127123899
BZ77: 8088 | CA77: 8112 | CB77: 319 | CC77: 0.5127349159
BZ78: 8113 | CA78: 8137 | CB78: 320 | CC78: 0.5127573031
AW345: 31000
AW346: 31250
AW347: 31500
AW348: 31750
AW349: 32000
AW350: 32250
AW351: 32500
AW352: 32750
AW353: 33000
AW354: 33250
AW355: 33500
AW356: 33750
AW357: 34000
AW358: 34250
AW359: 34500
AW360: 34750
AW361: 35000
AW362: 35250
AW363: 35500
AW364: 35750
AW365: 36000
AW366: 36250
AW367: 36500
AW368: 36750
AW369: 37000
AW370: 37250
AW371: 37500
AW372: 37750
AW373: 38000
AW374: 38250
AW375: 38500
AW376: 38750
AW377: 39000
AW378: 39250
AW379: 39500
AW380: 39750
AW381: 40000
AW382: 40250
AW383: 40500
AW384: 40750
AW385: 41000
AW386: 41250
AW387: 41500
AW388: 41750
AW389: 42000
AW390: 31250
AW391: 31500
AW392: 31750
AW393: 32000
AW394: 32250
AW395: 32500
AW396: 32750
AW397: 33000
AW398: 33250
AW399: 33500
AW400: 33750
AW401: 34000
AW402: 34250
AW403: 34500
AW404: 34750
AW405: 35000
AW406: 35250
AW407: 35500
AW408: 35750
AW409: 36000
AW410: 36250
AW411: 36500
AW412: 36750
AW413: 37000
AW414: 37250
AW415: 37500
AW416: 37750
AW417: 38000
AW418: 38250
AW419: 38500
AW420: 38750
AW421: 39000
AW422: 39250
AW423: 39500
AW424: 39750
AW425: 40000
AW426: 40250
AW427: 40500
AW428: 40750
AW429: 41000
AW430: 41250
AW431: 41500
AW432: 41750
AW433: 42000
